Cogmind - Beta 13 @@@ ROGUE MODE // 2024.04.06 @ 15:23:21 Player: SovietPaperclip Result: Self-destructed Performance ------------- Evolutions (2) 1000 Regions Visited (3) 600 Robots Destroyed (45) 225 Value Destroyed (1315) 1315 Prototype IDs (12) 240 Alien Tech Used (0) 0 Bonus (-39) -39 TOTAL SCORE: 3341 Bonus ------- Friendly Fire -39 Cogmind --------- Core Integrity 363/550 Matter 295/300 Energy 125/125 System Corruption 0% Temperature Cool (0) Movement Treading (163) Location -8/Materials Parts ------- > --- POWER (1) -------- Light Ion Engine > --- PROPULSION (4) --- Light Treads Light Treads Armored Treads > --- UTILITY (4) ------ Improved Heat Sink Hardened Heavy Armor Plating > --- WEAPON (2) ------- Makeshift Sword > --- INVENTORY (5) ---- Meta Core Improved VTOL Module Structural Scanner Sensor Array Hacking Suite Peak State ------------ > --- POWER ------------ (None) > --- PROPULSION ------- Light Treads Light Treads Armored Treads Subdweller Monowheel > --- UTILITY ---------- Improved Heat Sink Medium Storage Unit Hardened Heavy Armor Plating > --- WEAPON ----------- Makeshift Sword > --- INVENTORY -------- Meta Core Improved VTOL Module Structural Scanner Sensor Array Hacking Suite [Rating: 25] Favorites ----------- Power Reinforced Ion Engine Engine Reinforced Ion Engine Propulsion Light Treads Treads Light Treads Wheel Subdweller Monowheel Utility Medium Storage Unit Device Cooling System Storage Medium Storage Unit Protection Makeshift Light Armor Plating Weapon Barrage Gun Energy Cannon Beam Cannon Ballistic Gun Barrage Gun Ballistic Cannon Light Cannon Slashing Weapon Makeshift Sword Build | -11 -10 -10 -8 ------- Run | Yrd Mat Sub Mat Slots Evolved 4 | . . . 4 Power . | . . . . Propulsion 2 | . . . 2 Utility 2 | . . . 2 Weapon . | . . . . Parts Attached 40 | 6 12 13 9 Power 5 | 1 2 1 1 Engine 5 | 1 2 1 1 Core . | . . . . Reactor . | . . . . Propulsion 12 | 2 3 4 3 Treads 11 | 2 3 3 3 Leg . | . . . . Wheel 1 | . . 1 . Hover . | . . . . Flight . | . . . . Utility 10 | 1 4 2 3 Device 5 | . 3 . 2 Storage 2 | 1 1 . . Processor . | . . . . Hackware . | . . . . Protection 3 | . . 2 1 Artifact . | . . . . Weapon 13 | 2 3 6 2 Energy Gun . | . . . . Energy Cannon 2 | . 1 . 1 Ballistic Gun 7 | 2 1 4 . Ballistic Cannon 2 | . 1 1 . Launcher . | . . . . Special Weapon . | . . . . Impact Weapon . | . . . . Slashing Weapon 2 | . . 1 1 Piercing Weapon . | . . . . Special Melee Weapon . | . . . . Unidentified Prototypes . | . . . . Parts Lost 15 | . . 9 6 Power 2 | . . 1 1 Propulsion 4 | . . 4 . Utility 3 | . . 1 2 Weapon 6 | . . 3 3 Highest Loss Streak 5 | . . 5 5 To Critical Strikes . | . . . . Average Slot Usage (%) 93 | . 98 94 63 Engine 13 | . 13 13 6 Treads 22 | . 27 20 8 Wheel 2 | . . 3 6 Device 6 | . 12 3 9 Storage 13 | . 14 14 9 Protection 6 | . . 9 9 Energy Cannon 2 | . 5 1 . Ballistic Gun 18 | . 15 20 10 Ballistic Cannon 5 | . 7 4 . Naked Turns . | . . . . Heaviest Build 36 | 10 28 30 36 Greatest Support 60 | 40 40 40 60 Greatest Overweight (x) 8 | . 1 8 1 Average Overweight (x) . | . . . . Largest Inventory Capacity 10 | 8 10 10 10 Average Capacity 9 | 7 8 10 9 Most Carried 10 | 3 10 10 10 Average Carried 6 | 1 5 6 6 Final Capacity 10 | 8 10 10 5 Final Carried 10 | 2 10 6 5 Class Distribution -------------------- 95% | Mutant 4% | Scavenger-Mutant Dominant Class ---------------- Mutant | -10/Materials Mutant | -10/Subcaves Scavenger-Mutant | -8/Materials Resources | -11 -10 -10 -8 ----------- Run | Yrd Mat Sub Mat Matter Collected 1480 | 241 250 839 150 Remotely . | . . . . Salvage Created 1681 | . 421 836 424 Parts 116 | . 32 55 29 Haulers Intercepted 2 | . 2 . . Recyclers Shooed . | . . . . Parts Field Recycled . | . . . . Retrieved Matter . | . . . . Parts Self-Destructed 20 | . . 20 . Prevented . | . . . . Kills | -11 -10 -10 -8 ------- Run | Yrd Mat Sub Mat Combat Hostiles Destroyed 40 | . 9 19 12 Melee 8 | . . 1 7 Guns 24 | . 5 14 5 Cannons 8 | . 4 4 . Classes Destroyed 9 | . 6 2 1 Worker 1 | . 1 . . Hauler 2 | . 2 . . Operator 1 | . 1 . . Watcher 1 | . 1 . . Swarmer 12 | . 3 4 5 Grunt 10 | . 6 . 4 Sentry 3 | . . 1 2 Heavy 1 | . . . 1 Subdweller 14 | . . 14 . Best Kill Streak 6 | . 6 4 4 Combat Bots Only 5 | . 5 4 4 Max Kills in Single Turn 1 | . 1 1 1 Gunslinging . | . . . . Exploded . | . . . . Melee 1 | . . 1 1 Uniques/NPCs Destroyed . | . . . . Combat | -11 -10 -10 -8 -------- Run | Yrd Mat Sub Mat Hostile Shots Fired 280 | . 37 112 131 Missed 80 | . 14 35 31 Damage Taken 3029 | . 233 1458 1338 Core 381 | . 54 140 187 Absorbed by Shields . | . . . . Core Remaining (%) 61 | 100 . 22 . Volleys Fired 174 | . 45 107 22 Largest 2 | . 2 2 2 Hottest 95 | . 95 95 80 Shots Fired 332 | . 90 205 37 Gun 268 | . 71 162 35 Cannon 64 | . 19 43 2 Launcher . | . . . . Special . | . . . . Kinetic 311 | . 81 195 35 Thermal 21 | . 9 10 2 Explosive . | . . . . Electromagnetic . | . . . . Robot Hit Streak 11 | . 8 11 10 Robot Miss Streak 6 | . 6 3 4 Penetration Max . | . . . . Secondary Targets 3 | . 1 1 1 Max Gunslinging Chain 1 | . 1 1 1 Shots Hit Robots 190 | . 45 110 35 Core Hits 77 | . 24 35 18 Critical Kills 3 | . 1 2 . Critical Parts Destroyed 1 | . . . 1 Critical Strikes 7 | . 1 3 3 Destroy 4 | . 1 2 1 Blast 1 | . . 1 . Sever 2 | . . . 2 Melee Attacks 17 | . . 1 16 Impact . | . . . . Slashing 17 | . . 1 16 Piercing . | . . . . Sneak Attacks . | . . . . Combat Hostiles . | . . . . Follow-up Attacks . | . . . . Damage Inflicted 3314 | . 500 2014 800 Guns 2152 | . 275 1476 401 Cannons 757 | . 225 502 30 Explosions . | . . . . Melee 405 | . . 36 369 Ramming . | . . . . Kinetic 2599 | . 360 1838 401 Thermal 310 | . 140 140 30 Explosive . | . . . . Electromagnetic . | . . . . Impact . | . . . . Slashing 405 | . . 36 369 Piercing . | . . . . Highest Corruption . | . . . . Average Corruption . | . . . . Corruption Purged . | . . . . Corruption Blocked . | . . . . Overload Shots . | . . . . Overflow Damage 26 | . 12 . 14 Projectiles 12 | . 12 . . Explosions . | . . . . Melee 14 | . . . 14 Knockbacks 4 | . . 4 . Impact . | . . . . Kinetic 4 | . . 4 . Secondary . | . . . . Self-Inflicted Damage . | . . . . Shots . | . . . . Rammed . | . . . . Targets Rammed . | . . . . Kicked . | . . . . Crushed . | . . . . Highest Temperature 98 | . 9 9 98 Average Temperature 24 | . 4 3 41 Received Heat Transfer 627 | . 81 276 270 Siege Activations . | . . . . Robots Corrupted . | . . . . Combat Hostiles . | . . . . Parts Fried . | . . . . Impact Corruptions . | . . . . Robots Melted . | . . . . Combat Hostiles . | . . . . Parts Melted 1 | . . 1 . Heat Transferred 629 | . 296 296 37 Parts Sabotaged . | . . . . Parts Stolen . | . . . . Parts Stripped . | . . . . Power Chain Reactions . | . . . . Alert | -11 -10 -10 -8 ------- Run | Yrd Mat Sub Mat Peak Influence 334 | . 203 . 334 Initial 41 | . . . 41 Average 86 | . 74 . 156 Maximum Alert Level 1 | . 1 . 1 Low Security (%) 91 | 100 96 . 67 Level 1 8 | . 3 . 32 Level 2 . | . . . . Level 3 . | . . . . Level 4 . | . . . . Level 5 . | . . . . High Security . | . . . . Max Security . | . . . . Squads Dispatched 2 | . . . 2 Investigation . | . . . . Extermination . | . . . . Reinforcement 2 | . . . 2 Assault . | . . . . Garrison . | . . . . Intercept . | . . . . Searches Triggered . | . . . . Construction Impeded . | . . . . Haulers Reinforced . | . . . . Active Scanning Responses . | . . . . Cargo Convoy Interrupts . | . . . . Stealth | -11 -10 -10 -8 --------- Run | Yrd Mat Sub Mat Distress Signals 3 | . 1 . 2 Communications Jammed . | . . . . Distress Signals . | . . . . Times Spotted 64 | . 24 18 22 Peak Tracking Total 10 | . 8 6 10 Tactical Retreats 4 | . 1 1 2 Traps | -11 -10 -10 -8 ------- Run | Yrd Mat Sub Mat Traps Triggered 5 | . 4 1 . Indirectly . | . . . . Trap Hack Attempts . | . . . . Triggered . | . . . . Disarmed . | . . . . Reprogrammed . | . . . . Reused . | . . . . Traps Extracted . | . . . . Installed . | . . . . Triggered . | . . . . Machines | -11 -10 -10 -8 ---------- Run | Yrd Mat Sub Mat Machines Disabled 1 | . . 1 . Max in Single Turn 1 | . . 1 . Machines Repaired . | . . . . Machines Dismantled . | . . . . Machines Sabotaged . | . . . . Overloaded Fab Kills . | . . . . Hacking | -11 -10 -10 -8 --------- Run | Yrd Mat Sub Mat Machines Accessed 9 | . 7 1 1 Terminals 8 | . 7 . 1 Fabricators . | . . . . Repair Stations . | . . . . Recycling Units . | . . . . Scanalyzers . | . . . . Garrison Access . | . . . . Total Hacks 15 | . 13 1 1 Successful 10 | . 8 1 1 Failed 5 | . 5 . . Catastrophic . | . . . . Database Lockouts . | . . . . Manual 1 | . 1 . . Terminals 14 | . 13 . 1 Fabricators . | . . . . Repair Stations . | . . . . Recycling Units . | . . . . Scanalyzers . | . . . . Garrison Access . | . . . . Terminal Hacks 9 | . 7 1 1 Record 1 | . 1 . . Prototype ID Bank 1 | . 1 . . Unreport Threat 2 | . 2 . . Locate Traps 1 | . 1 . . Hauler Manifests 2 | . 1 . 1 Zone Layout 1 | . 1 . . Derelict Proto ID Bank 1 | . . 1 . Fabricator Hacks . | . . . . Repair Station Hacks . | . . . . Recycling Unit Hacks . | . . . . Scanalyzer . | . . . . Garrison Access Hacks . | . . . . Unauthorized Hacks 1 | . 1 . . Terminals 1 | . 1 . . Assimilate 1 | . 1 . . Fabricators . | . . . . Repair Stations . | . . . . Recycling Units . | . . . . Scanalyzers . | . . . . Garrison Access . | . . . . Data Cores Recovered . | . . . . Used . | . . . . Hacking Detections 3 | . 3 . . Full Trace Events . | . . . . Feedback Events . | . . . . Feedback Blocked . | . . . . Robot Schematics Acquired . | . . . . Robots Built . | . . . . Authchips . | . . . . Time . | . . . . Total Robot Build Rating . | . . . . Part Schematics Acquired . | . . . . Parts Built . | . . . . Authchips . | . . . . Time . | . . . . Total Part Build Rating . | . . . . Parts Repaired . | . . . . Time . | . . . . Parts Recycled . | . . . . Recycled Matter . | . . . . Retrieved Matter . | . . . . Retrieved Components . | . . . . Parts Scanalyzed . | . . . . Part Schematics Acquired . | . . . . Parts Damaged . | . . . . Bothacking | -11 -10 -10 -8 ------------ Run | Yrd Mat Sub Mat Used RIF Installer . | . . . . Robots Hacked . | . . . . Non-combat . | . . . . Combat . | . . . . Robot Hacks Applied . | . . . . Relay Couplers Released . | . . . . Fabnet Peak Effective % . | . . . . Robots Rewired . | . . . . Allies Hacked . | . . . . Hacks Repelled . | . . . . Allies | -11 -10 -10 -8 -------- Run | Yrd Mat Sub Mat Total Allies 1 | . 1 . . Largest Group . | . . . . Highest-Rated Group . | . . . . Highest-Rated Ally . | . . . . Total Orders . | . . . . Ally Attacks . | . . . . Total Damage . | . . . . Kills . | . . . . Allies Corrupted . | . . . . Allies Melted . | . . . . Intel | -11 -10 -10 -8 ------- Run | Yrd Mat Sub Mat Robot Analysis Total . | . . . . Derelict Logs Recovered 1 | . . 1 . Drone Launches . | . . . . Drone Recoveries . | . . . . Exploration | -11 -10 -10 -8 ------------- Run | Yrd Mat Sub Mat Turns Passed 4258 | 66 1359 2519 314 Spaces Moved 2400 | 38 742 1475 145 Core 11 | 7 . 4 . Treads 1824 | 31 742 1010 41 Legs . | . . . . Wheels 565 | . . 461 104 Hover . | . . . . Flight . | . . . . Fastest Speed 50 | 50 160 110 110 Average Speed 150 | 139 160 147 131 Slowest Speed 450 | 160 240 450 163 Overloaded Moves . | . . . . Propulsion Burnouts . | . . . . Robots Hopped . | . . . . Cave-ins Triggered . | . . . . Exploration Rate (%) 48 | 4 97 79 12 Regions Visited 3 Branch Regions 1 Pre-discovered Areas 1 | . . 1 . Known Exits Taken . | . . . . Unknown Exits Taken 3 | 1 1 1 . Scrap Searched 9 | . . 9 . Spaces Dug . | . . . . Terrain Destroyed 2 | . . . 2 Melee . | . . . . Projectile 2 | . . . 2 AOE . | . . . . Terrain Rammed . | . . . . Walls Destroyed . | . . . . Machines Disabled . | . . . . Actions | -11 -10 -10 -8 --------- Run | Yrd Mat Sub Mat Total 2740 | 51 837 1634 218 Wait 47 | . 15 16 16 Move 2397 | 37 741 1474 145 Hop . | . . . . Pick Up 48 | 8 19 13 8 Fast Attach . | . . . . Attach 33 | 6 7 11 9 Detach 1 | . . 1 . Swap 7 | . 5 2 . Drop 16 | . 5 9 2 Fire 174 | . 45 107 22 Melee 17 | . . 1 16 Ram . | . . . . Kick . | . . . . Crush . | . . . . Escape Stasis . | . . . . Rewire . | . . . . Trap . | . . . . Miscellaneous . | . . . . Route ------- -11/Scrapyard -10/Materials (discovered 6 exits: [*Mat x3] / [*Min x2] / *Sub) -10/Subcaves (discovered 2 exits: *Mat x2) -8/Materials History --------- Turn | Location | Event 8 | -11/Scrapyard | Discovered new exit (range 15) 67 | -11/Scrapyard | Entered Materials 289 | -10/Materials | Discovered new exit (range 14) 300 | -10/Materials | Build established: Mutant 381 | -10/Materials | Discovered new exit (range 12) 710 | -10/Materials | Discovered new exit (range 4) 808 | -10/Materials | Discovered new exit (range 15) 933 | -10/Materials | Discovered new exit (range 15) 1413 | -10/Materials | Discovered new exit (range 9) 1426 | -10/Materials | Entered Subcaves 1474 | -10/Subcaves | Discovered new exit (range 16) 1766 | -10/Subcaves | A swath of the cavern ceiling suddenly collapsed 2377 | -10/Subcaves | Shifting Twisted Machinery released Piercing Trap 3054 | -10/Subcaves | Discovered new exit (range 9) 3181 | -10/Subcaves | Shifting Twisted Machinery released Sub. Laser 3182 | -10/Subcaves | Shifting Twisted Machinery released Mak. Sword 3285 | -10/Subcaves | Ambushed by Subdwellers from Twisted Machinery 3295 | -10/Subcaves | Core integrity fell below 50% 3356 | -10/Subcaves | Lost 5 parts (1p2n2w) 3446 | -10/Subcaves | A swath of the cavern ceiling suddenly collapsed 3533 | -10/Subcaves | Learned location of Zion (-6) 3664 | -10/Subcaves | Visited 4L-MR0's lab 3684 | -10/Subcaves | Found Meta Core 3945 | -10/Subcaves | Entered Materials 3945 | -8/Materials | Evolved 4 slots: Propulsion x2, Utility x2 4166 | -8/Materials | Lost 5 parts (1p1u3w) 4259 | -8/Materials | Self-destructed Last Messages --------------- 04149_ Acquired Hrd. Heavy Armor Plating. 04152_ Acquired Arm. Treads. 04155_ Acquired 10 matter. 04157_ S-10 Pest destroyed. 04162_ Dropped Mak. Light Armor Plating. 04164_ Acquired 10 matter. 04164_ Dropped Sub. Monowheel. 04166_ Acquired Lgt. Ion Engine. 04211_ W-25 Informer sends out distress signal. 04227_ Critical hit (Burn: +37). 04228_ Destroyed Flight Unit. 04228_ S-10 Pest destroyed. 04232_ G-47 Trooper destroyed. 04240_ G-47 Trooper Lgt. Nuclear Core severed. 04244_ G-47 Trooper Aluminum Leg severed. 04248_ W-25 Informer sends out distress signal. 04248_ G-47 Trooper destroyed. 04253_ Med. Storage Unit destroyed. 04254_ S-10 Pest destroyed. 04258_ Slug penetrates Wall. Map ----- +----------------------------------------------------+ | # #???????????### T #?????????????? | | =%= !%* #???????####### """ #?????????????? | | #####/############### % #* """ #?????????????? | | # """ #?????????????? | | ^ + #?????????????? | | # """ #?????????????? | | ##################### # [ """ #?????????????? | | ??????????? ## ##![*""" [#?????????????? | | ?????????? ! ## ## %[! #?????????????? | | ????????# !## ##+########?????????????? | | ????????# """ """ ## ##%#????????????????????? | | ????????# """"""""" ## ==## #????????????????????? | | ????????# """"" " ## %## #????????????????????? | | ????????# ##==%## #????????????????????? | | ????????#######+##### !!%# #????????????????????? | | ????????###### !!# #????????????????????? | | ????????# # #????????????????????? | | ????????# #### # #????????????????????? | | ?????????????# #### # #????????????????????? | | ?????????????# #??#######%#????????????????????? | | ?????????????# #????##### #????????????????????? | | ?????????????# ###### ]#=#????????????????????? | | ?????????????# xx=*#%#????????????????????? | | ?????????????# ######su*#Y#????????????????????? | | ?????????????# #????##!%= #????????????????????? | | ???????????####+########[@= #????????????????????? | | ???????????# + w % #????????????????????? | | ???????????# """ """ # [ #????????????????????? | | ???????????# """ """ # #????????????????????? | | ???????????# """ """ + ?????????????????? | | ???????????# ####### #????????????????? | | ???????????# #?????? #????????????????? | | ???????????# #?????? #????????????????? | | ???????????# #?????? #????????????????? | | ???????????###########?????? ? #????????????????? | | ???????????????????????????? ? #????????????????? | | ???????????????????????????? ?? #????????????????? | | ??????????????????????????????? #????????????????? | | ????????????????????????????????#????????????????? | | ?????????????????????????????????????????????????? | | ?????????????????????????????????????????????????? | | ?????????????????????????????????????????????????? | | ?????????????????????????????????????????????????? | | ?????????????????????????????????????????????????? | | ?????????????????????????????????????????????????? | | ?????????????????????????????????????????????????? | | ?????????????????????????????????????????????????? | | ?????????????????????????????????????????????????? | | ?????????????????????????????????????????????????? | | ?????????????????????????????????????????????????? | +----------------------------------------------------+ Best States ------------- Heat Dissipation 47 Energy Generation 15 Energy Capacity 265 Matter Stores 300 Matter Capacity 300 Sight Range 16 Terrain Scan Density 10 Armor Coverage 600 Evasion (%) 40 Recoil Reduction 3 Particle Charging 15 Item Schematics ----------------- None Robot Schematics ------------------ None Fabricated ------------ Nothing Alien Tech Used ----------------- None Achievements -------------- None Challenges ------------ None Game ------ Seed DeepAntimatterCompressor Manual? 0 Play Time 00:28:08 Cumulative 46.2 hours Start 2024.04.06 @ 14:58:06 End 2024.04.06 @ 15:23:21 Sessions 1 Manual Loads 0 Difficulty Rogue Special Mode None Game No. 62 Rogue 62 Adventurer 0 Explorer 0 Win Type - Total 1 Types 1/0/0/0/0/0/0/0/0 Lore% 28 Gallery% 30 Achievement% 31 Wizard Run 0 Options --------- Layout 1 ASCII 0 Keyboard 0 Movement Mouse Keybinds 0 Fullscreen 2 Font 32/Smallcaps Map View 50x40 Zoom Use 0% Tactical HUD 1 Map Filters NONE Filters NONE Steam 1 RUN: 16ab1b5d-8922-401b-a2d4-eba036599497